fUST/lending_fUST_20250722
["ID","MTS","AMOUNT","RATE_DAILY","PERIOD"]
[373993549,1753173046422,-648.0,0.00022873,2]
[373993551,1753173046431,-710.89,0.00022897,2]
[373993553,1753173046441,-635.88,0.000229,2]
[373993555,1753173046451,-151.0,0.00022916,7]
[373993557,1753173046460,-151.0,0.00022924,6]
[373993559,1753173046470,-53210.83152602,0.00022929,2]
[373993561,1753173046479,-1321.71,0.00022929,7]
[373993562,1753173046489,-1809.33,0.00023,2]
[373993564,1753173046500,-3460.39,0.00023,7]
[373993566,1753173046510,-1965.17990156,0.00023,2]
[373993568,1753173046519,-733.71875676,0.00023,10]
[373993571,1753173046529,-346.60986435,0.00023,2]
[373993573,1753173046539,-80345.42044287,0.00023,10]
[373993575,1753173046548,-1336.14095833,0.00023,2]
[373993577,1753173046558,-160.0,0.00023,2]
[373993579,1753173046572,-212.48471666,0.00023002,2]
[373993581,1753173046581,-2622.62,0.00023002,2]
[373993582,1753173046591,-1321.71,0.00023029,2]
[373993585,1753173046600,-154.473694,0.0002305,3]
[373993587,1753173046610,-779.6373572,0.00023071,2]
[373993589,1753173046620,-562.71621147,0.00023071,2]
[373993590,1753173046629,-1080.36312529,0.00023071,2]
[373993593,1753173046638,-808.42,0.00023071,2]
[373993595,1753173046648,-821.56833991,0.00023072,2]
[373993597,1753173046658,-617.38262531,0.00023072,2]
[373993599,1753173046668,-151.0,0.000231,7]
[373993601,1753173046677,-151.0,0.000231,7]
[373993603,1753173046686,-151.0,0.000231,7]
[373993605,1753173046696,-550.77003226,0.00023105,2]
[373993607,1753173046705,-2061.22012368,0.00023107,8]
[373993609,1753173046714,-1321.71,0.00023129,6]
[373993622,1753173046816,-710.93393113,0.00023171,2]
[373993624,1753173046845,-500.0,0.00023173,2]
[373993626,1753173046854,-635.92948032,0.00023173,2]
[373993628,1753173046863,-3813.53,0.000232,7]
[373993630,1753173046874,-1797.88,0.000232,7]
[373993633,1753173046884,-48552.48,0.000232,2]
[373993635,1753173046893,-164.00619825,0.00023205,2]
[373993637,1753173046904,-1321.71,0.00023229,7]
[373993639,1753173046913,-1321.71,0.00023329,4]
[373993641,1753173046923,-429.6101251,0.00023342,2]
[373993643,1753173046932,-429.6101251,0.00023342,2]
[373993645,1753173046941,-429.6101251,0.00023342,2]
[373993647,1753173046951,-429.6101251,0.00023342,2]
[373993649,1753173046961,-429.6101251,0.00023342,2]
[373993651,1753173046970,-858.1927431,0.00023342,2]
[373993653,1753173046980,-429.6101251,0.00023342,2]
[373993655,1753173046989,-231.28369723,0.00023385,2]
[373993656,1753173046999,-98.93934207,0.00023417,9]
[373993685,1753173047262,-1962.28078161,0.00023417,9]
[373993688,1753173047272,-151.0,0.00023418,6]
[373993690,1753173047282,-1321.71,0.00023429,2]
[373993692,1753173047291,-500.0,0.00023447,2]
[373993694,1753173047301,-7322.04614707,0.00023458,2]
[373993696,1753173047311,-164.00619825,0.00023507,2]
[373993698,1753173047320,-164.00619825,0.00023507,2]
[373993700,1753173047331,-154.473694,0.00023514,30]
[373993702,1753173047340,-1321.71,0.00023529,5]
[373993704,1753173047350,-154.473694,0.00023572,2]
[373993706,1753173047359,-151.0,0.000236,8]
[373993708,1753173047368,-577.4526085,0.00023616,2]
[373993710,1753173047378,-159.8957685,0.00023616,2]
[373993712,1753173047387,-178.204927,0.00023616,2]
[373993714,1753173047397,-159.8957685,0.00023616,2]
[373993716,1753173047406,-178.204927,0.00023616,2]
[373993718,1753173047416,-159.8957685,0.00023616,2]
[373993720,1753173047425,-577.4526085,0.00023616,2]
[373993722,1753173047435,-178.204927,0.00023616,2]
[373993724,1753173047444,-577.4526085,0.00023616,2]
[373993726,1753173047453,-178.204927,0.00023616,2]
[373993728,1753173047464,-159.8957685,0.00023616,2]
[373993730,1753173047473,-159.8957685,0.00023616,2]
[373993732,1753173047483,-178.204927,0.00023616,2]
[373993734,1753173047493,-577.4526085,0.00023616,2]
[373993736,1753173047505,-1321.71,0.00023629,2]
[373993738,1753173047515,-154.473694,0.00023635,14]
[373993740,1753173047524,-154.473694,0.00023663,6]
[373993742,1753173047533,-500.0,0.00023721,2]
[373993745,1753173047543,-2061.22012368,0.00023728,9]
[373993747,1753173047553,-1321.71,0.00023729,3]
[373993749,1753173047562,-154.473694,0.0002377,30]
[373993751,1753173047571,-159.8957685,0.0002379,2]
[373993753,1753173047580,-159.8957685,0.0002379,2]
[373993755,1753173047590,-159.8957685,0.0002379,2]
[373993757,1753173047600,-45.23086414,0.00023829,7]
[373993774,1753173047752,-460.0,0.0001677,2]
[373993776,1753173047762,-460.0,0.00017044,2]
[373993778,1753173047773,-1276.47913586,0.00023829,7]
[373993780,1753173047782,-3316.98192707,0.00023852,4]
[373993782,1753173047795,-683.01807293,0.00023852,4]
[373993784,1753173047804,-151.0,0.00023888,7]
[373993786,1753173047814,-4615.98192707,0.00023888,7]
[373993794,1753173047881,-460.0,0.00016768,2]
[373993796,1753173047891,-460.0,0.00017042,2]
[373993798,1753173047901,-460.0,0.00017316,2]
[373993800,1753173047911,-1846.79189322,0.00017492,2]
[373993802,1753173047921,-460.0,0.0001759,2]
[373993804,1753173047930,-39.28810678,0.00023616,2]
[373993877,1753173049086,-162.97,0.00017864,2]
[373993878,1753173049096,-440.77471666,0.0002199,10]
[373993879,1753173049108,-3894.13528334,0.0002199,10]
[373993880,1753173049118,-429.6101251,0.00023342,2]
[373993881,1753173049128,-138.91682022,0.00023616,2]
[373993882,1753173049138,-577.4526085,0.00023616,2]
[373993883,1753173049148,-27.52852047,0.00023616,2]
[373994434,1753173996689,161.408051,0.00013699,2]
[373994435,1753174002836,196.4183491,0.00016008,2]
[373994464,1753174232480,-300.0,0.00016767,2]
[373994466,1753174232490,-300.0,0.00016767,2]
[373994468,1753174232499,-460.0,0.00016768,2]
[373994470,1753174232508,-460.0,0.00016768,2]
[373994472,1753174232520,-460.0,0.00016768,2]
[373994474,1753174232530,-352.06280579,0.00016768,2]
[373994477,1753174232548,-107.93719421,0.00016768,2]
[373994479,1753174232557,-460.0,0.00016768,2]
[373994481,1753174232567,-106.45007878,0.00016768,2]
[373994484,1753174232587,-353.54992122,0.00016768,2]
[373994486,1753174232596,-114.71555122,0.00016768,2]
[373994545,1753174238324,-345.28444878,0.00016768,2]
[373994547,1753174238334,-460.0,0.00016768,2]
[373994549,1753174238343,-460.0,0.00016768,2]
[373994551,1753174238352,-477.9,0.00016768,2]
[373994553,1753174238361,-318.06874284,0.00016768,2]
[373994555,1753174238371,-460.0,0.00016768,2]
[373994557,1753174238380,-460.0,0.00016768,2]
[373994559,1753174238389,-460.0,0.00016768,2]
[373994561,1753174238398,-460.0,0.00016768,2]
[373994563,1753174238408,-718.2,0.00016769,2]
[373994566,1753174238417,-460.0,0.00016769,2]
[373994569,1753174238427,-460.0,0.00016769,2]
[373994572,1753174238436,-460.0,0.00016867,2]
[373994575,1753174238446,-906.82,0.00016867,2]
[373994577,1753174238456,-189.53177803,0.00016867,2]
[373994579,1753174238466,-465.19,0.00016867,2]
[373994582,1753174238476,-460.0,0.00016867,2]
[373994586,1753174238486,-482.73,0.00016867,2]
[373994588,1753174238496,-646.32,0.00016867,2]
[373994592,1753174238506,-460.0,0.00016867,2]
[373994594,1753174238515,-346.76,0.00016867,2]
[373994597,1753174238526,-460.0,0.00016867,2]
[373994599,1753174238535,-460.0,0.00016867,2]
[373994602,1753174238544,-460.0,0.00016867,2]
[373994605,1753174238553,-1133.07,0.00016867,2]
[373994608,1753174238562,-460.0,0.00016867,2]
[373994611,1753174238571,-460.0,0.00016867,2]
[373994613,1753174238580,-460.0,0.00016867,2]
[373994615,1753174238589,-460.0,0.00016867,2]
[373994617,1753174238598,-460.0,0.00016867,2]
[373994619,1753174238608,-460.0,0.00016867,2]
[373994621,1753174238617,-460.0,0.00016867,2]
[373994623,1753174238627,-473.11,0.00016867,2]
[373994625,1753174238638,-460.0,0.00016867,2]
[373994627,1753174238648,-460.0,0.00016867,2]
[373994629,1753174238658,-460.0,0.00016867,2]
[373994631,1753174238667,-460.0,0.00016868,2]
[373994633,1753174238677,-470.8700511,0.00016868,2]
[373994635,1753174238686,-203.22704554,0.00016868,2]
[373994637,1753174238696,-460.0,0.00016868,2]
[373994639,1753174238705,-460.0,0.00016868,2]
[373994641,1753174238715,-371.72708699,0.00016868,2]
[373994644,1753174238734,-85.53088853,0.00016868,2]
[373994646,1753174238743,-460.0,0.00016868,2]
[373994648,1753174238754,-460.0,0.00016868,2]
[373994650,1753174238763,-460.0,0.00016868,2]
[373994651,1753174238774,-460.0,0.00016868,2]
[373994652,1753174238784,-460.0,0.00016868,2]
[373994653,1753174238794,-460.0,0.00016868,2]
[373994654,1753174238804,-372.71464799,0.00016868,2]
[373994655,1753174238814,-460.0,0.00016868,2]
[373994656,1753174238824,-342.22536314,0.00016868,2]
[373994658,1753174238833,-460.0,0.00016868,2]
[373994660,1753174238843,-460.0,0.00016868,2]
[373994662,1753174238852,-406.34930501,0.00016868,2]
[373994664,1753174238864,-53.65069499,0.00016868,2]
[373994666,1753174238873,-460.0,0.00016868,2]
[373994668,1753174238882,-158.59123007,0.00016868,2]
[373994670,1753174238892,-460.0,0.00016868,2]
[373994672,1753174238901,-460.0,0.00016868,2]
[373994674,1753174238911,-176.56943516,0.00016868,2]
[373994676,1753174238920,-460.0,0.00016868,2]
[373994678,1753174238929,-460.0,0.00016868,2]
[373994680,1753174238939,-460.0,0.00016868,2]
[373994682,1753174238948,-460.0,0.00016868,2]
[373994684,1753174238957,-460.0,0.00016868,2]
[373994686,1753174238966,-460.0,0.00016868,2]
[373994688,1753174238975,-460.0,0.00016868,2]
[373994690,1753174238984,-713.8,0.00016868,2]
[373994692,1753174238993,-460.0,0.00016868,2]
[373994694,1753174239002,-460.0,0.00016868,2]
[373994696,1753174239011,-460.0,0.00016868,2]
[373994698,1753174239022,-460.0,0.00016869,2]
[373994700,1753174239031,-460.0,0.00016869,2]
[373994702,1753174239040,-2073.6,0.00016869,2]
[373994704,1753174239050,-480.53,0.00016869,2]
[373994706,1753174239059,-460.0,0.00016871,2]
[373994708,1753174239068,-460.0,0.00016871,2]
[373994710,1753174239077,-460.0,0.00016871,2]
[373994712,1753174239086,-785.06,0.00016871,2]
[373994714,1753174239095,-669.95,0.00016871,2]
[373994716,1753174239104,-460.0,0.00016871,2]
[373994718,1753174239113,-460.0,0.00016871,2]
[373994720,1753174239122,-460.0,0.00017042,2]
[373994722,1753174239131,-460.0,0.00017042,2]
[373994724,1753174239140,-460.0,0.00017042,2]
[373994725,1753174239152,-460.0,0.00017042,2]
[373994729,1753174239172,-460.0,0.00017042,2]
[373994731,1753174239183,-460.0,0.00017042,2]
[373994733,1753174239194,-460.0,0.00017042,2]
[373994735,1753174239204,-718.2,0.00017043,2]
[373994737,1753174239213,-460.0,0.00017043,2]
[373994739,1753174239223,-460.0,0.00017043,2]
[373994741,1753174239234,-906.82,0.00017141,2]
[373994743,1753174239245,-460.0,0.00017141,2]
[373994745,1753174239255,-646.32,0.00017141,2]
[373994747,1753174239264,-460.0,0.00017141,2]
[373994749,1753174239274,-460.0,0.00017141,2]
[373994751,1753174239284,-1133.07,0.00017141,2]
[373994753,1753174239293,-460.0,0.00017141,2]
[373994755,1753174239303,-460.0,0.00017141,2]
[373994757,1753174239312,-460.0,0.00017141,2]
[373994759,1753174239322,-473.11,0.00017141,2]
[373994761,1753174239332,-460.0,0.00017141,2]
[373994763,1753174239342,-460.0,0.00017141,2]
[373994765,1753174239352,-460.0,0.00017142,2]
[373994767,1753174239362,-460.0,0.00017142,2]
[373994769,1753174239371,-460.0,0.00017142,2]
[373994771,1753174239381,-460.0,0.00017142,2]
[373994773,1753174239390,-460.0,0.00017142,2]
[373994775,1753174239399,-460.0,0.00017142,2]
[373994777,1753174239408,-460.0,0.00017142,2]
[373994780,1753174239418,-460.0,0.00017142,2]
[373994782,1753174239428,-460.0,0.00017142,2]
[373994784,1753174239437,-713.8,0.00017142,2]
[373994786,1753174239446,-460.0,0.00017142,2]
[373994788,1753174239456,-273.98,0.00017142,2]
[373994790,1753174239465,-460.0,0.00017143,2]
[373994792,1753174239475,-460.0,0.00017143,2]
[373994794,1753174239485,-2073.6,0.00017143,2]
[373994796,1753174239494,-480.53,0.00017143,2]
[373994798,1753174239504,-537.89490463,0.00017145,2]
[373994800,1753174239513,-460.0,0.00017145,2]
[373994802,1753174239523,-785.06,0.00017145,2]
[373994804,1753174239533,-669.95,0.00017145,2]
[373994806,1753174239544,-460.0,0.00017145,2]
[373994808,1753174239554,-460.0,0.00017145,2]
[373994810,1753174239563,-226.49,0.00017316,2]
[373994812,1753174239573,-460.0,0.00017316,2]
[373994813,1753174239583,-460.0,0.00017316,2]
[373994816,1753174239592,-460.0,0.00017316,2]
[373994818,1753174239602,-460.0,0.00017316,2]
[373994820,1753174239612,-206.20015387,0.00017316,2]
[373994822,1753174239622,-718.2,0.00017317,2]
[373994824,1753174239632,-460.0,0.00017317,2]
[373994826,1753174239642,-460.0,0.00017317,2]
[373994828,1753174239652,-906.82,0.00017415,2]
[373994830,1753174239662,-460.0,0.00017415,2]
[373994832,1753174239672,-646.32,0.00017415,2]
[373994834,1753174239682,-460.0,0.00017415,2]
[373994836,1753174239692,-460.0,0.00017415,2]
[373994838,1753174239701,-1133.07,0.00017415,2]
[373994840,1753174239711,-460.0,0.00017415,2]
[373994842,1753174239722,-460.0,0.00017415,2]
[373994844,1753174239732,-473.11,0.00017415,2]
[373994846,1753174239742,-460.0,0.00017415,2]
[373994848,1753174239752,-460.0,0.00017415,2]
[373994850,1753174239762,-283.3040134,0.00017416,2]
[373994852,1753174239771,-460.0,0.00017416,2]
[373994854,1753174239782,-460.0,0.00017416,2]
[373994856,1753174239792,-460.0,0.00017416,2]
[373994858,1753174239801,-460.0,0.00017416,2]
[373994860,1753174239811,-460.0,0.00017416,2]
[373994863,1753174239822,-460.0,0.00017416,2]
[373994865,1753174239832,-460.0,0.00017416,2]
[373994867,1753174239842,-460.0,0.00017416,2]
[373994869,1753174239852,-713.8,0.00017416,2]
[373994871,1753174239862,-460.0,0.00017416,2]
[373994873,1753174239871,-460.0,0.00017417,2]
[373994875,1753174239881,-460.0,0.00017417,2]
[373994877,1753174239890,-2073.6,0.00017417,2]
[373994879,1753174239899,-480.53,0.00017417,2]
[373994881,1753174239909,-460.0,0.00017419,2]
[373994883,1753174239919,-785.06,0.00017419,2]
[373994885,1753174239929,-669.95,0.00017419,2]
[373994887,1753174239938,-460.0,0.00017419,2]
[373994889,1753174239948,-460.0,0.00017419,2]
[373994891,1753174239957,-460.0,0.0001759,2]
[373994893,1753174239966,-718.2,0.00017591,2]
[373994895,1753174239976,-460.0,0.00017591,2]
[373994897,1753174239985,-460.0,0.00017591,2]
[373994899,1753174239995,-906.82,0.00017689,2]
[373994901,1753174240004,-460.0,0.00017689,2]
[373994903,1753174240013,-646.32,0.00017689,2]
[373994905,1753174240024,-460.0,0.00017689,2]
[373994908,1753174240035,-460.0,0.00017689,2]
[373994910,1753174240045,-1133.07,0.00017689,2]
[373994912,1753174240056,-460.0,0.00017689,2]
[373994914,1753174240067,-473.11,0.00017689,2]
[373994916,1753174240079,-460.0,0.00017689,2]
[373994918,1753174240089,-460.0,0.00017689,2]
[373994919,1753174240099,-460.0,0.0001769,2]
[373994921,1753174240109,-460.0,0.0001769,2]
[373994925,1753174240119,-460.0,0.0001769,2]
[373994928,1753174240129,-232.54249376,0.0001769,2]
[373994930,1753174240139,-460.0,0.0001769,2]
[373994932,1753174240150,-460.0,0.0001769,2]
[373994934,1753174240164,-460.0,0.0001769,2]
[373994936,1753174240174,-713.8,0.0001769,2]
[373994938,1753174240183,-460.0,0.0001769,2]
[373994940,1753174240193,-460.0,0.00017691,2]
[373994941,1753174240205,-460.0,0.00017691,2]
[373994942,1753174240215,-2073.6,0.00017691,2]
[373994943,1753174240225,-480.53,0.00017691,2]
[373994944,1753174240235,-460.0,0.00017693,2]
[373994945,1753174240245,-785.06,0.00017693,2]
[373994946,1753174240255,-669.95,0.00017693,2]
[373994947,1753174240264,-460.0,0.00017693,2]
[373994948,1753174240274,-460.0,0.00017693,2]
[373994949,1753174240285,-603.02089374,0.00017767,2]
[373994950,1753174240294,-500.0,0.00017767,2]
[373994951,1753174240303,-500.0,0.00017767,2]
[373994952,1753174240313,-500.0,0.00017767,2]
[373994953,1753174240322,-500.93391383,0.00017767,2]
[373994954,1753174240332,-500.0,0.00017767,2]
[373994955,1753174240342,-431.03966901,0.00017767,2]
[373994956,1753174240352,-500.0,0.00017767,2]
[373994957,1753174240362,-460.0,0.00017864,2]
[373994958,1753174240372,-718.2,0.00017865,2]
[373994959,1753174240382,-460.0,0.00017865,2]
[373994960,1753174240392,-460.0,0.00017865,2]
[373994962,1753174240401,-460.0,0.00017865,2]
[373994964,1753174240412,-1638.26310913,0.000179,2]
[373994966,1753174240422,-906.82,0.00017963,2]
[373994968,1753174240432,-460.0,0.00017963,2]
[373994970,1753174240442,-646.32,0.00017963,2]
[373994972,1753174240451,-460.0,0.00017963,2]
[373994974,1753174240461,-460.0,0.00017963,2]
[373994976,1753174240472,-1133.07,0.00017963,2]
[373994978,1753174240481,-460.0,0.00017963,2]
[373994980,1753174240490,-473.11,0.00017963,2]
[373994982,1753174240500,-460.0,0.00017963,2]
[373994984,1753174240510,-460.0,0.00017963,2]
[373994986,1753174240520,-249.11,0.00017964,2]
[373994988,1753174240532,-460.0,0.00017964,2]
[373994990,1753174240541,-460.0,0.00017964,2]
[373994992,1753174240550,-460.0,0.00017964,2]
[373994994,1753174240562,-460.0,0.00017964,2]
[373994996,1753174240573,-460.0,0.00017964,2]
[373994998,1753174240583,-713.8,0.00017964,2]
[373995000,1753174240593,-460.0,0.00017964,2]
[373995002,1753174240603,-460.0,0.00017965,2]
[373995004,1753174240613,-460.0,0.00017965,2]
[373995006,1753174240623,-2073.6,0.00017965,2]
[373995008,1753174240633,-480.53,0.00017965,2]
[373995010,1753174240642,-460.0,0.00017967,2]
[373995013,1753174240652,-785.06,0.00017967,2]
[373995015,1753174240663,-669.95,0.00017967,2]
[373995017,1753174240673,-460.0,0.00017967,2]
[373995018,1753174240682,-460.0,0.00017967,2]
[373995021,1753174240692,-14435.13148365,0.00018039,2]
[373995022,1753174240702,-280.0,0.00018133,2]
[373995024,1753174240713,-460.0,0.00018138,2]
[373995026,1753174240725,-718.2,0.00018139,2]
[373995029,1753174240736,-460.0,0.00018139,2]
[373995031,1753174240745,-460.0,0.00018139,2]
[373995032,1753174240755,-1638.26310895,0.00018176,2]
[373995035,1753174240766,-906.82,0.00018237,2]
[373995036,1753174240778,-460.0,0.00018237,2]
[373995039,1753174240788,-646.32,0.00018237,2]
[373995041,1753174240798,-460.0,0.00018237,2]
[373995043,1753174240807,-460.0,0.00018237,2]
[373995044,1753174240817,-1133.07,0.00018237,2]
[373995047,1753174240828,-473.11,0.00018237,2]
[373995049,1753174240837,-460.0,0.00018237,2]
[373995051,1753174240847,-460.0,0.00018237,2]
[373995053,1753174240857,-460.0,0.00018238,2]
[373995055,1753174240867,-210.53661808,0.00018238,2]
[373995057,1753174240877,-460.0,0.00018238,2]
[373995059,1753174240887,-460.0,0.00018238,2]
[373995061,1753174240896,-713.8,0.00018238,2]
[373995063,1753174240906,-460.0,0.00018238,2]
[373995065,1753174240917,-460.0,0.00018239,2]
[373995067,1753174240927,-460.0,0.00018239,2]
[373995069,1753174240936,-2073.6,0.00018239,2]
[373995071,1753174240946,-480.53,0.00018239,2]
[373995073,1753174240956,-460.0,0.00018241,2]
[373995075,1753174240965,-785.06,0.00018241,2]
[373995076,1753174240975,-669.95,0.00018241,2]
[373995079,1753174240985,-460.0,0.00018241,2]
[373995081,1753174240994,-460.0,0.00018241,2]
[373995082,1753174241004,-256.70477444,0.00018267,2]
[373995084,1753174241013,-500.0,0.00018315,2]
[373995086,1753174241024,-350.74554853,0.00018315,2]
[373995088,1753174241034,-1000.0,0.00018315,2]
[373995090,1753174241044,-420.0,0.00018318,2]
[373995093,1753174241054,-420.0,0.00018318,2]
[373995094,1753174241063,-526.78,0.00018403,3]
[373995096,1753174241073,-460.0,0.00018412,2]
[373995099,1753174241089,-718.2,0.00018413,2]
[373995100,1753174241098,-460.0,0.00018413,2]
[373995102,1753174241108,-460.0,0.00018413,2]
[373995104,1753174241118,-1638.26310895,0.00018452,2]
[373995106,1753174241128,-906.82,0.00018511,2]
[373995108,1753174241138,-460.0,0.00018511,2]
[373995110,1753174241151,-646.32,0.00018511,2]
[373995112,1753174241160,-460.0,0.00018511,2]
[373995114,1753174241171,-460.0,0.00018511,2]
[373995116,1753174241180,-1133.07,0.00018511,2]
[373995118,1753174241190,-473.11,0.00018511,2]
[373995120,1753174241200,-460.0,0.00018511,2]
[373995122,1753174241209,-460.0,0.00018511,2]
[373995124,1753174241219,-460.0,0.00018512,2]
[373995126,1753174241230,-460.0,0.00018512,2]
[373995128,1753174241239,-713.8,0.00018512,2]
[373995130,1753174241249,-460.0,0.00018513,2]
[373995132,1753174241259,-460.0,0.00018513,2]
[373995134,1753174241269,-2073.6,0.00018513,2]
[373995136,1753174241280,-480.53,0.00018513,2]
[373995138,1753174241290,-460.0,0.00018515,2]
[373995140,1753174241299,-785.06,0.00018515,2]
[373995142,1753174241309,-669.95,0.00018515,2]
[373995144,1753174241320,-460.0,0.00018515,2]
[373995146,1753174241330,-597.98,0.00018515,2]
[373995148,1753174241340,-160.0,0.00018616,2]
[373995163,1753174241476,-160.0,0.00018616,2]
[373995165,1753174241487,-160.0,0.00018616,2]
[373995167,1753174241497,-160.0,0.00018616,2]
[373995169,1753174241506,-476.60259688,0.00018616,2]
[373995171,1753174241516,-839.90542673,0.00018616,2]
[373995173,1753174241527,-231.06963584,0.00018616,2]
[373995175,1753174241536,-12619.94447631,0.00018616,2]
[373995177,1753174241546,-160.0,0.00018616,2]
[373995179,1753174241555,-160.0,0.00018616,2]
[373995181,1753174241565,-214.6393183,0.00018616,2]
[373995183,1753174241575,-160.0,0.00018616,2]
[373995185,1753174241585,-215.80012421,0.00018616,2]
[373995187,1753174241594,-160.0,0.00018616,2]
[373995189,1753174241604,-526.07605158,0.00018616,2]
[373995191,1753174241613,-160.0,0.00018616,2]
[373995193,1753174241623,-460.0,0.00018686,2]
[373995195,1753174241632,-718.2,0.00018687,2]
[373995197,1753174241642,-460.0,0.00018687,2]
[373995199,1753174241651,-460.0,0.00018687,2]
[373995201,1753174241662,-1638.26310895,0.00018728,2]
[373995203,1753174241671,-906.82,0.00018785,2]
[373995205,1753174241681,-460.0,0.00018785,2]
[373995207,1753174241690,-646.32,0.00018785,2]
[373995209,1753174241700,-460.0,0.00018785,2]
[373995211,1753174241710,-460.0,0.00018785,2]
[373995213,1753174241719,-1133.07,0.00018785,2]
[373995215,1753174241729,-473.11,0.00018785,2]
[373995218,1753174241742,-460.0,0.00018785,2]
[373995220,1753174241752,-460.0,0.00018786,2]
[373995222,1753174241761,-713.8,0.00018786,2]
[373995224,1753174241770,-460.0,0.00018787,2]
[373995226,1753174241782,-460.0,0.00018787,2]
[373995228,1753174241791,-2073.6,0.00018787,2]
[373995229,1753174241800,-480.53,0.00018787,2]
[373995231,1753174241809,-460.0,0.00018789,2]
[373995233,1753174241818,-785.06,0.00018789,2]
[373995235,1753174241828,-669.95,0.00018789,2]
[373995237,1753174241837,-460.0,0.00018789,2]
[373995239,1753174241847,-160.0,0.00018865,2]
[373995241,1753174241856,-1176.62211392,0.000189,2]
[373995244,1753174241870,-303.03636376,0.000189,2]
[373995246,1753174241880,-460.0,0.0001896,2]
[373995248,1753174241889,-718.2,0.00018961,2]
[373995250,1753174241899,-460.0,0.00018961,2]
[373995252,1753174241908,-460.0,0.00018961,2]
[373995254,1753174241917,-1638.26310895,0.00019003,2]
[373995256,1753174241927,-906.82,0.00019059,2]
[373995258,1753174241936,-460.0,0.00019059,2]
[373995260,1753174241945,-646.32,0.00019059,2]
[373995262,1753174241955,-460.0,0.00019059,2]
[373995264,1753174241964,-420.63578481,0.00019059,2]
[373995266,1753174241974,-1133.07,0.00019059,2]
[373995268,1753174241983,-473.11,0.00019059,2]
[373995270,1753174241992,-460.0,0.00019059,2]
[373995272,1753174242005,-460.0,0.0001906,2]
[373995274,1753174242015,-713.8,0.0001906,2]
[373995276,1753174242026,-460.0,0.00019061,2]
[373995278,1753174242035,-460.0,0.00019061,2]
[373995280,1753174242044,-2073.6,0.00019061,2]
[373995282,1753174242054,-480.53,0.00019061,2]
[373995284,1753174242063,-460.0,0.00019063,2]
[373995286,1753174242072,-785.06,0.00019063,2]
[373995288,1753174242082,-669.95,0.00019063,2]
[373995290,1753174242091,-460.0,0.00019063,2]
[373995292,1753174242100,-303.03636376,0.00019089,2]
[373995294,1753174242110,-249.385251,0.00019178,2]
[373995296,1753174242119,-718.2,0.00019235,2]
[373995298,1753174242129,-460.0,0.00019235,2]
[373995300,1753174242139,-302.65469058,0.00019278,2]
[373995302,1753174242149,-1638.26310895,0.00019279,2]
[373995304,1753174242163,-906.82,0.00019333,2]
[373995306,1753174242173,-460.0,0.00019333,2]
[373995308,1753174242184,-646.32,0.00019333,2]
[373995310,1753174242193,-460.0,0.00019333,2]
[373995312,1753174242204,-1133.07,0.00019333,2]
[373995314,1753174242213,-473.11,0.00019333,2]
[373995316,1753174242224,-460.0,0.00019333,2]